bitfinex/quotes_BTCUSD_20210101
["timestamp","ask_amount","ask_price","bid_price","bid_amount"]
[1609492420033,5.0006,29101.0,29099.0,1.51948776]
[1609492420233,4.8894,29101.0,29100.0,0.33]
[1609492420432,5.0008,29102.0,29101.0,0.33180302]
[1609492420433,0.0008,29102.0,29101.0,0.33180302]
[1609492420633,4.9614,29103.0,29101.0,0.33180302]
[1609492420830,10.0,29102.0,29101.0,0.33180302]
[1609492421042,9.992,29102.0,29100.0,1.33]
[1609492421244,9.999,29103.0,29100.0,1.33]
[1609492421543,4.999,29103.0,29101.0,0.56680302]
[1609492421843,4.9992,29103.0,29102.0,1.0]
[1609492422048,0.63213635,29104.0,29102.0,1.0]
[1609492422246,5.0,29103.0,29102.0,1.0]
[1609492422446,10.0,29103.0,29102.0,1.2]
[1609492422646,10.0,29103.0,29102.0,1.0]
[1609492422647,9.938,29103.0,29102.0,1.0]
[1609492422845,9.938,29103.0,29102.0,1.25119057]
[1609492423346,4.938,29103.0,29102.0,1.25119057]
[1609492423746,10.233,29103.0,29102.0,1.25119057]
[1609492424149,10.233,29103.0,29102.0,0.83675989]
[1609492424349,9.933,29103.0,29102.0,1.12634608]
[1609492424551,9.928,29103.0,29102.0,1.12634608]
[1609492425163,4.91417072,29103.0,29102.0,1.12634608]
[1609492425566,9.91417072,29103.0,29102.0,1.12634608]
[1609492426064,10.27917072,29103.0,29102.0,1.12634608]
[1609492426465,10.27917072,29103.0,29102.0,1.44937832]
[1609492426864,10.27917072,29103.0,29102.0,1.12634608]
[1609492426865,10.26687072,29103.0,29102.0,1.12634608]
[1609492427265,10.26437072,29103.0,29102.0,1.12634608]
[1609492427467,9.89937072,29103.0,29102.0,1.12634608]
[1609492428063,9.87937012,29103.0,29102.0,1.12634608]
[1609492429472,9.87937012,29103.0,29102.0,1.11634608]
[1609492429978,0.63233635,29104.0,29102.0,1.11634608]
[1609492430289,0.62733635,29104.0,29102.0,1.93134608]
[1609492430488,0.62733635,29104.0,29102.0,2.16669658]
[1609492430894,5.001,29106.0,29103.0,0.89]
[1609492431092,4.99811425,29106.0,29105.0,1.82369443]
[1609492431294,9.99811425,29106.0,29105.0,1.82369443]
[1609492431490,9.99753646,29106.0,29105.0,1.82369443]
[1609492431694,9.99753646,29106.0,29105.0,1.29369443]
[1609492432496,9.99753646,29106.0,29105.0,1.06725443]
[1609492432793,10.58753646,29106.0,29105.0,1.03225443]
[1609492433197,9.99753646,29106.0,29105.0,1.03225443]
[1609492433695,4.99753646,29106.0,29105.0,1.03225443]
[1609492433891,4.99753646,29106.0,29105.0,1.56225443]
[1609492434093,9.99753646,29106.0,29105.0,1.75225443]
[1609492434496,9.99753646,29106.0,29105.0,1.22225443]
[1609492435295,9.99753646,29106.0,29105.0,1.02725443]
[1609492436517,10.09753646,29106.0,29105.0,1.02725443]
[1609492436715,9.99753646,29106.0,29105.0,1.02725443]
[1609492437117,5.001,29107.0,29105.0,1.02725443]
[1609492437323,0.001,29107.0,29106.0,0.15]
[1609492437518,0.0008,29107.0,29106.0,1.15]
[1609492438118,0.0008,29107.0,29106.0,1.3853505]
[1609492438516,0.49372564,29107.0,29106.0,1.3853505]
[1609492438818,5.49372564,29107.0,29106.0,1.3853505]
[1609492439218,10.49372564,29107.0,29106.0,1.2353505]
[1609492439419,10.48872564,29107.0,29106.0,1.2353505]
[1609492439820,10.4813824,29107.0,29106.0,1.2353505]
[1609492440222,10.4813824,29107.0,29106.0,1.3353505]
[1609492440419,10.4813824,29107.0,29106.0,1.54604113]
[1609492440625,0.4813824,29107.0,29106.0,1.75069063]
[1609492440822,0.4813824,29107.0,29106.0,1.53917115]
[1609492441021,0.4813824,29107.0,29106.0,1.42417115]
[1609492441220,5.4813824,29107.0,29106.0,0.98417115]
[1609492443038,5.29634708,29107.0,29106.0,0.98417115]
[1609492443897,5.29634708,29107.0,29106.0,1.19569063]
[1609492444395,5.29634708,29107.0,29106.0,0.98417115]
[1609492444799,5.29634708,29107.0,29106.0,1.21417115]
[1609492445199,0.29634708,29107.0,29106.0,1.21417115]
[1609492445431,0.29537106,29107.0,29106.0,1.21417115]
[1609492445930,0.29537106,29107.0,29106.0,1.74417115]
[1609492447127,0.29537106,29107.0,29106.0,1.51417115]
[1609492447728,0.28148454,29107.0,29106.0,1.51417115]
[1609492447931,0.26148394,29107.0,29106.0,1.51417115]
[1609492448128,0.25870282,29107.0,29106.0,1.51417115]
[1609492448527,0.25814583,29107.0,29106.0,1.51417115]
[1609492449160,0.35814583,29107.0,29106.0,0.98417115]
[1609492449757,3.55814583,29107.0,29106.0,0.97327115]
[1609492449958,3.55814583,29107.0,29106.0,0.971199]
[1609492450258,3.94814583,29107.0,29106.0,0.971199]
[1609492450859,3.55814583,29107.0,29106.0,0.971199]
[1609492451060,0.35814583,29107.0,29106.0,0.971199]
[1609492451261,2.25814583,29107.0,29106.0,0.971199]
[1609492451462,7.56314583,29107.0,29106.0,0.971199]
[1609492452159,5.66314583,29107.0,29106.0,0.971199]
[1609492452359,5.66314583,29107.0,29106.0,0.97037015]
[1609492452860,5.66314583,29107.0,29106.0,0.96957015]
[1609492455383,5.77083302,29107.0,29106.0,0.96957015]
[1609492455589,5.75683302,29107.0,29106.0,0.96957015]
[1609492455789,5.66314583,29107.0,29106.0,0.96957015]
[1609492455986,5.56114583,29107.0,29106.0,0.96957015]
[1609492456484,5.56025188,29107.0,29106.0,0.96957015]
[1609492456884,5.66025188,29107.0,29106.0,0.96957015]
[1609492458088,5.58949146,29107.0,29106.0,0.96957015]
[1609492458285,5.60035782,29107.0,29106.0,0.96957015]
[1609492461678,5.69404501,29107.0,29106.0,0.96957015]
[1609492461980,5.69404501,29107.0,29106.0,1.5e-07]
[1609492461981,11.92315982,29107.0,29106.0,1.5e-07]
[1609492462182,11.92335982,29107.0,29102.0,0.25119057]
[1609492462484,6.257562,29103.0,29102.0,0.25119057]
[1609492462680,7.257562,29103.0,29102.0,0.25119057]
[1609492463181,17.257562,29103.0,29102.0,0.25119057]
[1609492463484,18.257562,29103.0,29102.0,0.73732207]
[1609492463677,18.26842986,29103.0,29102.0,0.73732207]
[1609492464303,18.26842986,29103.0,29102.0,0.25119057]
[1609492466302,18.26842986,29103.0,29102.0,0.35348215]
[1609492468102,18.22842892,29103.0,29102.0,0.35348215]
[1609492469106,11.61842986,29103.0,29102.0,0.35348215]
[1609492469740,12.61842986,29103.0,29102.0,0.35348215]
[1609492470333,12.61842986,29103.0,29102.0,0.25119057]
[1609492473349,13.74612986,29103.0,29102.0,0.25119057]
[1609492473624,13.61842986,29103.0,29102.0,0.25119057]
[1609492479285,13.61342986,29103.0,29102.0,0.25119057]
[1609492481994,13.69946986,29103.0,29102.0,0.25119057]
[1609492484291,13.89315705,29103.0,29102.0,0.25119057]
[1609492486432,14.89315705,29103.0,29102.0,0.24619057]
[1609492486633,13.89315705,29103.0,29102.0,0.24619057]
[1609492488711,13.89315705,29103.0,29102.0,5.7e-07]
[1609492493912,13.69946986,29103.0,29102.0,5.7e-07]
[1609492494117,12.61342986,29103.0,29102.0,5.7e-07]
[1609492494538,12.60842986,29103.0,29102.0,5.7e-07]
[1609492505545,12.60842986,29103.0,29102.0,0.10424046]
[1609492506548,12.60842986,29103.0,29102.0,0.95424046]
[1609492506751,11.99976786,29103.0,29102.0,0.24558016]
[1609492506950,11.99976786,29103.0,29102.0,1.39134027]
[1609492507152,10.99956786,29103.0,29102.0,0.5663397]
[1609492507387,10.01086786,29103.0,29102.0,0.1413397]
[1609492507848,10.01086786,29103.0,29102.0,0.24351788]
[1609492508052,10.21086755,29103.0,29102.0,0.24351788]
[1609492508254,9.37523559,29103.0,29102.0,1.49351788]
[1609492508453,9.15523559,29103.0,29102.0,1.49351788]
[1609492508653,9.15523559,29103.0,29102.0,0.41851788]
[1609492509361,9.15523559,29103.0,29102.0,0.27717818]
[1609492509561,9.15523559,29103.0,29102.0,0.7525254]
[1609492510165,9.15523559,29103.0,29102.0,0.78599352]
[1609492510363,9.15523559,29103.0,29102.0,0.92733322]
[1609492510869,9.15523559,29103.0,29102.0,0.55829881]
[1609492511065,4.14823559,29103.0,29102.0,1.80829881]
[1609492511366,9.14623559,29103.0,29102.0,1.80829881]
[1609492511563,4.14623559,29103.0,29102.0,1.701986]
[1609492511765,4.14623559,29103.0,29102.0,0.41851788]
[1609492512165,4.14623559,29103.0,29102.0,0.27717818]
[1609492513064,4.14623559,29103.0,29102.0,0.89272852]
[1609492513964,9.14623559,29103.0,29102.0,0.89272852]
[1609492514166,9.1317205,29103.0,29102.0,0.89272852]
[1609492514365,4.1317205,29103.0,29102.0,0.89272852]
[1609492515493,4.1317205,29103.0,29102.0,0.41851788]
[1609492515695,9.1287205,29103.0,29102.0,0.41851788]
[1609492516899,9.1287205,29103.0,29102.0,0.27717818]
[1609492517300,9.1187205,29103.0,29102.0,0.27717818]
[1609492517500,9.1177205,29103.0,29102.0,0.27717818]
[1609492517703,8.1177205,29103.0,29102.0,1.52717818]
[1609492517999,8.1177205,29103.0,29102.0,0.41851788]
[1609492518851,8.1177205,29103.0,29102.0,1.41851788]
[1609492519450,8.1177205,29103.0,29102.0,1.3163397]
[1609492519650,8.1177205,29103.0,29102.0,1.1413397]
[1609492520351,1.84602514,29103.0,29102.0,2.3913397]
[1609492520587,1.84602514,29103.0,29102.0,2.00265251]
[1609492520782,1.83302514,29103.0,29102.0,2.00265251]
[1609492521282,1.80002514,29103.0,29102.0,2.00265251]
[1609492521685,1.80002514,29103.0,29102.0,1.8963397]
[1609492521686,1.72340201,29103.0,29102.0,1.8963397]
[1609492521885,0.01086786,29103.0,29102.0,2.54265251]
[1609492522091,0.18437743,29107.0,29102.0,2.57612063]
[1609492522290,0.18437743,29107.0,29106.0,2.25]
[1609492522591,0.18437743,29107.0,29106.0,3.47166281]
[1609492522788,0.18437743,29107.0,29106.0,4.00166281]
[1609492522987,0.18437743,29107.0,29106.0,1.64535]
[1609492523187,0.18437743,29107.0,29106.0,2.00535]
[1609492523390,0.18437743,29107.0,29106.0,2.1466897]
[1609492523789,0.11275743,29107.0,29106.0,2.9466897]
[1609492523984,0.09486408,29107.0,29106.0,2.1466897]
[1609492524411,0.09486408,29107.0,29106.0,1.6166897]
[1609492524615,0.09486408,29107.0,29106.0,1.5013397]
[1609492524616,5.09486408,29107.0,29106.0,1.5013397]
[1609492526314,0.09486408,29107.0,29106.0,1.5013397]
[1609492526517,0.08111229,29107.0,29106.0,2.5513397]
[1609492526814,0.07835853,29107.0,29106.0,1.5013397]
[1609492527214,0.07780709,29107.0,29106.0,1.5013397]
[1609492527715,5.07780709,29107.0,29106.0,1.5013397]
[1609492528017,5.05990709,29107.0,29106.0,1.5013397]
[1609492528617,5.01454032,29107.0,29106.0,1.5013397]
[1609492528816,5.00545575,29107.0,29106.0,1.5013397]
[1609492529215,5.00363659,29107.0,29106.0,1.5013397]
[1609492529616,5.00327232,29107.0,29106.0,1.5013397]
[1609492531148,4.99367931,29107.0,29106.0,1.5013397]
[1609492531550,4.99167931,29107.0,29106.0,1.5013397]
[1609492532556,4.99167931,29107.0,29106.0,1.97873928]
[1609492532749,4.99167931,29107.0,29106.0,1.61873928]
[1609492533149,4.97377531,29107.0,29106.0,1.61873928]
[1609492533774,4.97377531,29107.0,29106.0,1.1413397]
[1609492534910,4.9021602,29107.0,29106.0,1.1413397]
[1609492535111,4.9021602,29107.0,29106.0,1.3113397]
[1609492535510,4.90183873,29107.0,29106.0,1.3113397]
[1609492535751,5.0008,29108.0,29106.0,1.3113397]
[1609492535950,5.0008,29108.0,29107.0,0.275]
[1609492536152,5.0006,29108.0,29107.0,0.275]
[1609492536350,5.0006,29108.0,29106.0,1.1413397]
[1609492536555,4.97939065,29108.0,29106.0,1.0]
[1609492536751,4.97959065,29108.0,29106.0,1.0]
[1609492536951,4.97684056,29108.0,29106.0,1.0]
[1609492537152,4.97184056,29108.0,29106.0,1.005]
[1609492537350,5.17129003,29108.0,29106.0,1.005]
[1609492537551,5.17129003,29108.0,29106.0,1.14635823]
[1609492537856,5.0,29107.0,29106.0,1.14635823]
[1609492538253,6.834452,29107.0,29106.0,1.14635823]
[1609492538452,11.81445199,29107.0,29106.0,1.14635823]
[1609492538655,11.81445199,29107.0,29106.0,1.005]
[1609492539249,10.81445199,29107.0,29106.0,1.005]
[1609492539882,10.81445199,29107.0,29106.0,0.995]
[1609492541684,10.81075199,29107.0,29106.0,0.995]
[1609492541885,10.81075199,29107.0,29106.0,1.13635823]
[1609492542087,11.81005199,29107.0,29106.0,1.13635823]
[1609492542389,12.02235199,29107.0,29106.0,1.13635823]
[1609492542586,12.10235199,29107.0,29106.0,1.13635823]
[1609492542788,12.10235199,29107.0,29106.0,1.61807392]
[1609492542987,12.10235199,29107.0,29106.0,1.47671569]
[1609492543189,12.10235199,29107.0,29106.0,0.995]
[1609492544088,12.10235199,29107.0,29106.0,0.99]
[1609492544286,12.07735199,29107.0,29106.0,0.99]
[1609492545134,12.07735199,29107.0,29106.0,1.13135823]
[1609492546719,12.11767199,29107.0,29106.0,1.13135823]
[1609492546920,12.11767199,29107.0,29106.0,0.99]
[1609492547923,12.11767199,29107.0,29106.0,1.45260522]
[1609492548223,12.07735199,29107.0,29106.0,1.45260522]
[1609492549275,12.11110265,29107.0,29106.0,1.45260522]
[1609492549675,12.11110265,29107.0,29106.0,1.13135823]
[1609492552077,12.10110265,29107.0,29106.0,1.13135823]
[1609492552679,12.7810627,29107.0,29106.0,1.13135823]
[1609492553981,13.7810627,29107.0,29106.0,1.13135823]
[1609492557211,13.8860627,29107.0,29106.0,1.13135823]
[1609492558410,13.8460627,29107.0,29106.0,1.13135823]
[1609492559414,13.8460627,29107.0,29106.0,1.13135822]
[1609492567353,13.8410627,29107.0,29106.0,1.13135822]
[1609492567977,13.79726187,29107.0,29106.0,1.13135822]
[1609492568579,13.72937996,29107.0,29106.0,1.13135822]
[1609492571487,13.72937996,29107.0,29106.0,0.72044822]
[1609492571687,13.72937996,29107.0,29101.0,0.14135822]
[1609492571890,0.365452,29105.0,29101.0,0.14135822]
[1609492572091,0.45913919,29103.0,29101.0,0.14135822]
[1609492572293,6.03,29102.0,29101.0,0.14135822]
[1609492572492,13.1230468,29102.0,29101.0,0.14135822]
[1609492572791,17.98913919,29102.0,29100.0,1.62300681]
[1609492572992,6.350992,29101.0,29100.0,1.14135822]
[1609492573200,17.487462,29101.0,29100.0,1.14135822]
[1609492573401,17.567462,29101.0,29100.0,1.14135822]
[1609492575201,17.603482,29101.0,29100.0,1.14135822]
[1609492577102,18.603482,29101.0,29100.0,1.14135822]
[1609492577306,18.603482,29101.0,29100.0,1.0]
[1609492577705,18.603482,29101.0,29094.0,0.36065822]
[1609492577907,0.365452,29096.0,29094.0,0.36065822]
[1609492578107,5.1,29095.0,29094.0,0.36065822]
[1609492578305,15.55913919,29095.0,29094.0,0.2193]
[1609492578503,16.365452,29095.0,29094.0,0.2193]
[1609492578703,16.445452,29095.0,29094.0,0.2193]
[1609492578968,16.445452,29095.0,29094.0,1.2193]
[1609492579268,16.445452,29095.0,29094.0,1.36065822]
[1609492581972,16.545452,29095.0,29094.0,1.36065822]
[1609492582172,17.649912,29095.0,29094.0,1.35565822]
[1609492582374,17.649912,29095.0,29094.0,1.0]
[1609492582611,18.649912,29095.0,29094.0,1.0]
[1609492582773,18.649912,29095.0,29087.0,0.1316]
[1609492582774,17.649912,29095.0,29087.0,0.1316]
[1609492582973,0.365452,29090.0,29087.0,0.1316]
[1609492583180,2.4165236,29094.0,29087.0,0.1316]
[1609492583181,0.365452,29088.0,29087.0,0.1316]
[1609492583373,0.557532,29088.0,29087.0,0.1316]
[1609492583569,11.637532,29088.0,29087.0,0.1316]
[1609492583773,1.637532,29088.0,29087.0,0.1316]
[1609492583973,11.637532,29088.0,29087.0,0.1316]
[1609492585787,11.633332,29088.0,29087.0,0.1316]
[1609492588494,11.628332,29088.0,29087.0,0.1316]
[1609492589490,11.628332,29088.0,29087.0,1.1316]
[1609492590309,11.628332,29088.0,29087.0,1.6145776]
[1609492590712,11.628332,29088.0,29087.0,1.1316]
[1609492590912,11.548332,29088.0,29087.0,1.1316]
[1609492591411,11.548332,29088.0,29087.0,1.61452419]
[1609492591612,12.548332,29088.0,29087.0,1.61429519]
[1609492591811,12.548332,29088.0,29087.0,1.48292419]
[1609492592112,12.548332,29088.0,29087.0,1.0]
[1609492596233,12.56295299,29088.0,29087.0,1.0]
[1609492596734,12.56295299,29088.0,29087.0,1.35]
[1609492603168,12.66295299,29088.0,29087.0,1.35]
[1609492605700,12.56295299,29088.0,29087.0,1.35]
[1609492605903,12.66295299,29088.0,29087.0,1.35]
[1609492608802,12.56295299,29088.0,29087.0,1.35]
[1609492610339,12.56295299,29088.0,29087.0,1.83422305]
[1609492610865,12.56295299,29088.0,29087.0,1.35]
[1609492616999,12.66295299,29088.0,29087.0,1.35]
[1609492618603,12.56295299,29088.0,29087.0,1.35]
[1609492619311,11.56295299,29088.0,29087.0,1.45]
[1609492619508,11.00472099,29088.0,29087.0,4.561019]
[1609492619711,10.00472099,29088.0,29087.0,3.561019]
[1609492619915,9.94792099,29088.0,29087.0,4.54448712]
[1609492620354,9.93652099,29088.0,29087.0,4.54448712]
[1609492620661,9.93422099,29088.0,29087.0,4.54448712]
[1609492620857,9.9158994,29088.0,29087.0,4.54448712]
[1609492621252,9.8979834,29088.0,29087.0,4.54448712]
[1609492621655,4.8979834,29088.0,29087.0,1.54448712]
[1609492621851,4.8979834,29088.0,29087.0,0.79448712]
[1609492622052,4.8979834,29088.0,29087.0,3.79448712]
[1609492622053,9.88006757,29088.0,29087.0,3.79448712]
[1609492622257,3.68026757,29088.0,29087.0,4.62948712]
[1609492622455,3.68026757,29088.0,29087.0,4.42948712]
[1609492622655,3.63906757,29088.0,29087.0,4.42948712]
[1609492622854,3.63906757,29088.0,29087.0,5.42948712]
[1609492623454,2.59657448,29088.0,29087.0,5.42948712]
[1609492623853,2.59657448,29088.0,29087.0,2.42548712]
[1609492624132,2.25377448,29088.0,29087.0,2.42548712]
[1609492624330,2.25377448,29088.0,29087.0,5.42548712]
[1609492626027,2.24557448,29088.0,29087.0,5.42548712]
[1609492626232,1.98857448,29088.0,29087.0,5.42548712]
[1609492626430,1.98687448,29088.0,29087.0,5.42548712]
[1609492626633,1.98657448,29088.0,29087.0,5.42548712]
[1609492626834,1.98657448,29088.0,29087.0,5.192019]
[1609492627230,1.98657448,29088.0,29087.0,3.942019]
[1609492627771,0.91020704,29088.0,29087.0,5.192019]
[1609492627932,0.90340704,29088.0,29087.0,5.592019]
[1609492628131,0.64640704,29088.0,29087.0,5.592019]
[1609492628333,0.64510704,29088.0,29087.0,5.592019]
[1609492628532,0.64480704,29088.0,29087.0,5.592019]
[1609492628736,5.0,29089.0,29088.0,3.55519296]
[1609492628931,5.0,29089.0,29088.0,4.56438896]
[1609492629136,5.0,29090.0,29088.0,4.56438896]
[1609492629333,9.9,29089.0,29088.0,3.35519296]
[1609492629646,10.0,29100.0,29088.0,2.56438796]
[1609492629848,5.0,29100.0,29089.0,0.60049781]
[1609492630051,0.0002,29102.0,29091.0,1.2]
[1609492630252,9.9974,29099.0,29093.0,0.10631281]
[1609492630549,10.0,29098.0,29094.0,0.204178]
[1609492630849,10.0,29097.0,29094.0,0.009178]
[1609492631047,10.0,29097.0,29095.0,1.0]
[1609492631247,10.0,29098.0,29096.0,0.159177]
[1609492631446,5.0,29098.0,29096.0,0.159177]
[1609492631657,5.0,29097.0,29096.0,0.159177]
[1609492632157,10.0002,29101.0,29096.0,0.159177]
[1609492632357,5.0,29097.0,29096.0,0.009177]
[1609492633059,5.0,29099.0,29096.0,0.009177]
[1609492633261,10.0,29097.0,29096.0,0.009177]
[1609492633463,5.0,29098.0,29096.0,0.159177]
[1609492633760,0.1,29096.0,29095.0,1.0]
[1609492633959,0.1,29096.0,29095.0,1.009175]
[1609492634264,0.1,29099.0,29096.0,0.009176]
[1609492634760,0.1,29099.0,29095.0,1.0]
[1609492634761,10.0,29098.0,29095.0,1.0]
[1609492634957,5.365452,29098.0,29095.0,1.0]
[1609492635160,0.1,29099.0,29096.0,0.009174]
[1609492635375,10.0,29097.0,29096.0,0.009174]
[1609492635577,5.0,29097.0,29096.0,0.009174]
[1609492635977,10.0,29097.0,29095.0,1.0]
[1609492636278,10.0,29097.0,29096.0,0.009176]
[1609492636980,10.1,29097.0,29095.0,1.0]
[1609492637475,10.0,29098.0,29095.0,1.0]
[1609492637676,5.0,29096.0,29095.0,1.0]
[1609492637877,10.0,29096.0,29095.0,0.009176]
[1609492638081,10.0,29096.0,29091.0,0.10293869]
[1609492638082,0.365452,29096.0,29091.0,0.10293869]
[1609492638284,0.7120882,29095.0,29087.0,0.8280528]
[1609492638484,0.1,29094.0,29087.0,0.8280528]
[1609492638683,0.365452,29093.0,29088.0,0.22]
[1609492638878,5.15661,29094.0,29088.0,0.22]
[1609492639120,5.15661,29094.0,29087.0,0.346]
[1609492639121,1.0,29089.0,29087.0,0.346]
[1609492639321,0.090808,29088.0,29087.0,0.346]
[1609492639618,10.090808,29088.0,29087.0,0.346]
[1609492639819,10.0,29088.0,29087.0,0.496]
[1609492641330,10.0,29088.0,29087.0,0.346]
[1609492642433,10.01274643,29088.0,29087.0,0.346]
[1609492643131,10.01274643,29088.0,29087.0,0.341]
[1609492650179,10.01274643,29088.0,29087.0,0.486]
[1609492650802,10.01274643,29088.0,29087.0,0.341]
[1609492654958,10.01274643,29088.0,29087.0,0.338411]
[1609492656198,10.11274643,29088.0,29087.0,0.338411]
[1609492657498,10.01274643,29088.0,29087.0,0.338411]
[1609492658900,10.11274643,29088.0,29087.0,0.338411]
[1609492659100,10.47819843,29088.0,29087.0,0.338411]
[1609492667958,10.47343012,29088.0,29087.0,0.338411]
[1609492668462,10.51281012,29088.0,29087.0,0.337411]
[1609492671161,10.47343012,29088.0,29087.0,0.337411]
[1609492672358,10.37343012,29088.0,29087.0,0.337411]
[1609492672859,10.47343012,29088.0,29087.0,0.337411]
[1609492675989,10.50563012,29088.0,29087.0,0.337411]
[1609492677091,10.40563012,29088.0,29087.0,0.337411]
[1609492678493,10.37343012,29088.0,29087.0,0.337411]
[1609492679795,10.41293012,29088.0,29087.0,0.337411]
[1609492682212,10.37343012,29088.0,29087.0,0.337411]
[1609492683213,10.47343012,29088.0,29087.0,0.337411]
[1609492683916,10.51523012,29088.0,29087.0,0.337411]
[1609492684232,10.47343012,29088.0,29087.0,0.337411]
[1609492688421,10.47886613,29088.0,29087.0,0.337411]
[1609492690246,10.51001613,29088.0,29087.0,0.337411]
[1609492691251,0.365452,29087.0,29085.0,0.6578]
[1609492691453,5.70913919,29086.0,29085.0,0.6578]
[1609492691849,15.70913919,29086.0,29085.0,0.6578]
[1609492692350,16.70913919,29086.0,29085.0,0.6578]
[1609492692851,11.50147919,29086.0,29085.0,0.6578]
[1609492693054,11.53913919,29086.0,29085.0,0.6578]
[1609492693654,11.55731078,29086.0,29085.0,0.6578]
[1609492693954,11.52992828,29086.0,29085.0,0.6578]
[1609492694355,11.52445167,29086.0,29085.0,0.6578]
[1609492694756,11.52335633,29086.0,29085.0,0.6578]
[1609492694956,11.52313725,29086.0,29085.0,0.6578]
[1609492695158,11.55631725,29086.0,29085.0,0.6578]
[1609492695488,11.56409907,29086.0,29085.0,0.6578]
[1609492695688,11.52313725,29086.0,29085.0,0.6578]
[1609492695891,11.59692725,29086.0,29085.0,0.6578]
[1609492696093,11.55692725,29086.0,29085.0,0.6578]
[1609492696289,11.52313725,29086.0,29085.0,0.6578]
[1609492696591,11.56591725,29086.0,29085.0,0.6578]
[1609492696792,11.52313725,29086.0,29085.0,0.6578]
[1609492696991,11.59427059,29086.0,29085.0,0.6578]
[1609492697291,11.56381725,29086.0,29085.0,0.6578]
[1609492697491,11.52313725,29086.0,29085.0,0.6478]
[1609492697690,11.55548725,29086.0,29085.0,0.6478]
[1609492697995,11.52313725,29086.0,29083.0,0.0265]
[1609492698294,4.115452,29084.0,29083.0,0.0265]
[1609492698594,9.17518474,29084.0,29083.0,0.0265]
[1609492698793,14.17518474,29084.0,29083.0,0.0265]
[1609492700153,1.0,29083.0,29078.0,0.2193]
[1609492700355,6.315452,29079.0,29078.0,0.2193]
[1609492700657,19.19544169,29079.0,29078.0,0.2193]
[1609492701049,18.83135239,29079.0,29078.0,0.2193]
[1609492701351,18.83135239,29079.0,29078.0,0.32365903]
[1609492701850,18.83135239,29079.0,29078.0,0.2193]
[1609492704865,19.19544169,29079.0,29078.0,0.2193]
[1609492705265,19.19544169,29079.0,29078.0,0.32337831]
[1609492705466,19.19544169,29079.0,29078.0,0.2193]
[1609492706566,19.19544169,29079.0,29078.0,0.32350212]
[1609492707270,19.19544169,29079.0,29078.0,0.4386]
[1609492708267,19.19544169,29079.0,29078.0,0.54191485]
[1609492708868,19.19544169,29079.0,29078.0,0.4386]
[1609492709269,19.21358288,29079.0,29078.0,0.4386]
[1609492710169,18.93960249,29079.0,29078.0,0.4386]
[1609492710370,11.88960249,29079.0,29078.0,0.4386]
[1609492710590,11.46359319,29079.0,29078.0,0.4386]
[1609492711991,11.63806319,29079.0,29078.0,0.4386]
[1609492712796,12.00215249,29079.0,29078.0,0.4386]
[1609492714345,12.00123627,29079.0,29078.0,0.4386]
[1609492714746,12.00123627,29079.0,29078.0,0.438366]
[1609492715449,12.00123627,29079.0,29078.0,0.219066]
[1609492716875,12.10123627,29079.0,29078.0,0.219066]
[1609492717079,12.00123627,29079.0,29078.0,0.219066]
[1609492717677,12.10123627,29079.0,29078.0,0.219066]
[1609492717877,12.00123627,29079.0,29078.0,0.219066]
[1609492720816,12.10123627,29079.0,29078.0,0.219066]
[1609492722419,1.0,29078.0,29075.0,0.000406]
[1609492722624,0.365452,29076.0,29074.0,0.000606]
[1609492722826,7.8486478,29075.0,29074.0,0.000606]
[1609492723223,7.9286478,29075.0,29074.0,0.000406]
[1609492723419,17.495452,29075.0,29073.0,0.1322]
[1609492723654,7.315452,29074.0,29073.0,0.1322]
[1609492723916,17.315452,29074.0,29073.0,0.1322]
[1609492724120,17.395452,29074.0,29073.0,0.1322]
[1609492725949,16.395452,29074.0,29073.0,0.1322]
[1609492726152,10.445452,29074.0,29073.0,0.1322]
[1609492729957,10.545452,29074.0,29073.0,0.1322]
[1609492730157,10.445452,29074.0,29073.0,0.1322]
[1609492730357,10.445452,29074.0,29073.0,0.62399836]
[1609492730958,10.445452,29074.0,29073.0,0.1322]
[1609492731462,10.365452,29074.0,29073.0,0.1322]
[1609492733122,10.357452,29074.0,29073.0,0.1322]
[1609492733316,10.356452,29074.0,29073.0,0.1322]
[1609492734822,10.3745712,29074.0,29073.0,0.1322]
[1609492736525,10.0181192,29074.0,29073.0,0.341238]
[1609492736730,10.01771577,29074.0,29073.0,3.434948]
[1609492736947,10.01771577,29074.0,29073.0,5.19841612]
[1609492737446,10.01771577,29074.0,29073.0,5.39841612]
[1609492738448,10.01771577,29074.0,29073.0,5.19841612]
[1609492738751,10.01771577,29074.0,29073.0,5.39841612]
[1609492738949,0.0181192,29074.0,29073.0,5.39841612]
[1609492739150,5.0,29076.0,29073.0,5.39841612]
[1609492739350,10.0,29076.0,29075.0,3.459035]
[1609492739550,5.0,29076.0,29075.0,3.59575641]
[1609492739750,5.0,29076.0,29075.0,4.47075641]
[1609492740149,5.0108784,29076.0,29075.0,1.22075641]
[1609492740351,5.0108784,29076.0,29075.0,0.34575641]
[1609492740553,5.0,29077.0,29076.0,3.45]
[1609492740758,0.6,29077.0,29076.0,4.10403]
[1609492741058,0.8081,29084.0,29076.0,4.10403]
[1609492741059,5.0,29078.0,29076.0,4.095]
[1609492741255,5.0,29081.0,29077.0,4.25]
[1609492741454,5.0,29083.0,29080.0,0.009021]
[1609492741655,5.0,29085.0,29082.0,3.6225]
[1609492741850,5.0,29085.0,29084.0,0.859008]
[1609492742155,10.0,29087.0,29084.0,0.747468]
[1609492742478,5.0,29086.0,29084.0,0.747468]
[1609492742678,5.0,29086.0,29085.0,0.009008]
[1609492743078,4.99974327,29086.0,29085.0,1.009008]
[1609492743278,4.99974327,29086.0,29085.0,0.269008]
[1609492743477,4.99974327,29086.0,29085.0,0.009008]
[1609492744517,4.99974327,29086.0,29085.0,0.008008]
[1609492745616,5.01061813,29086.0,29085.0,0.008008]
[1609492745917,4.86141813,29086.0,29085.0,0.008008]
[1609492746350,4.83151813,29086.0,29085.0,0.008008]
[1609492746551,4.82551813,29086.0,29085.0,1.208008]
[1609492746855,4.82431813,29086.0,29085.0,0.218008]
[1609492747054,4.82431813,29086.0,29085.0,0.008008]
[1609492747353,9.82431813,29086.0,29085.0,0.008008]
[1609492747752,4.82431813,29086.0,29085.0,0.008008]
[1609492747950,9.82431813,29086.0,29085.0,0.008008]